[Event "XXXI Torre Memorial 2019"]
[Site "Merida"]
[Date "2019.12.14"]
[Round "2.17"]
[White "Fernandez Cardoso, Alexey"]
[Black "Fernandez Bustamante, Leancy B."]
[Result "1/2-1/2"]
[ECO "B28"]
[WhiteElo "2441"]
[BlackElo "2069"]
[Annotator "NA"]
[PlyCount "82"]
[EventDate "2019.12.13"]
[EventType "swiss"]
[EventCountry "MEX"]
[SourceTitle "playchess.com"]
[Source "ChessBase"]
[SourceQuality "1"]
[TimeControl "5400+30"]

1. e4 {[%emt 0:01:38]} c5 {[%emt 0:00:00]} 2. Nf3 {[%emt 0:00:07]} a6 {[%emt 0:00:00]} 3. Nc3 {[%emt 0:00:10]} b5 {[%emt 0:00:55]} 4. d4 {[%emt 0:00:41]} cxd4 {[%emt 0:01:01]} 5. Nxd4 {[%emt 0:00:17]} Bb7 {[%emt 0:00:58]} 6. Bd3 {[%emt 0:05:24]} g6 {[%emt 0:06:17]} 7. f4 {[%emt 0:02:12]} Bg7 {[%emt 0:03:25]} 8. Nf3 {[%emt 0:00:07]} Nf6 {[%emt 0:05:36]} 9. e5 {[%emt 0:02:32]} Ng4 {[%emt 0:08:11]} 10. h3 {[%emt 0:02:58]} Nh6 {[%emt 0:00:12]} 11. Be4 {[%emt 0:01:01]} Bxe4 {[%emt 0:03:26]} 12. Nxe4 {[%emt 0:00:08]} O-O {[%emt 0:01:00]} 13. Be3 {[%emt 0:00:45]} Nf5 {[%emt 0:04:39]} 14. Bf2 {[%emt 0:00:10]} d5 {[%emt 0:04:09]} 15. Nc5 {[%emt 0:05:06]} Qa5+ {[%emt 0:05:59]} 16. c3 {[%emt 0:01:32]} b4 {[%emt 0:03:22]} 17. Nb3 {[%emt 0:06:54]} Qb5 {[%emt 0:03:03]} 18. g4 {[%emt 0:00:16]} bxc3 {[%emt 0:03:43]} 19. gxf5 {[%emt 0:01:54]} cxb2 {[%emt 0:00:07]} 20. Rb1 {[%emt 0:00:28]} Qb4+ {[%emt 0:00:15]} 21. Kf1 {[%emt 0:03:34]} Qxf4 {[%emt 0:03:37]} 22. Qxd5 {[%emt 0:00:56]} Nd7 {[%emt 0:05:16]} 23. Rxb2 {[%emt 0:05:06]} Nxe5 {[%emt 0:04:14]} 24. Nxe5 {[%emt 0:01:13]} Rad8 {[%emt 0:06:11]} 25. Qf3 {[%emt 0:00:11]} Qxf3 {[%emt 0:02:11]} 26. Nxf3 {[%emt 0:00:28]} Bxb2 {[%emt 0:01:18]} 27. fxg6 {[%emt 0:00:07]} hxg6 {[%emt 0:01:37]} 28. Ke2 {[%emt 0:00:10]} Rd5 {[%emt 0:03:02]} 29. Rb1 {[%emt 0:01:34]} Bg7 {[%emt 0:01:20]} 30. Nc5 {[%emt 0:00:09]} Rc8 {[%emt 0:03:01]} 31. Nxa6 {[%emt 0:00:34]} Rc2+ {[%emt 0:01:15]} 32. Kf1 {[%emt 0:00:08]} Rxa2 {[%emt 0:02:30]} 33. Rb8+ {[%emt 0:00:16]} Kh7 {[%emt 0:01:24]} 34. Nb4 {[%emt 0:00:09]} Ra1+ {[%emt 0:00:25]} 35. Kg2 {[%emt 0:00:02]} Rf5 {[%emt 0:01:06]} 36. Nc6 {[%emt 0:03:50]} Bf6 {[%emt 0:03:45]} 37. Rb7 {[%emt 0:01:02]} Ra3 {[%emt 0:01:36]} 38. Nh2 {[%emt 0:02:19]} Ra2 {[%emt 0:02:44]} 39. Nf3 {[%emt 0:00:19]} Ra3 {[%emt 0:00:06]} 40. Nh2 {[%emt 0:01:04]} Ra2 {[%emt 0:00:06]} 41. Nf3 {[%emt 0:00:35]} Ra3 {[%emt 0:01:38]} 1/2-1/2

[Event "XXXI Torre Memorial 2019"]
[Site "Merida"]
[Date "2019.12.14"]
[Round "2.18"]
[White "Ibarra Chami, Luis Fernando"]
[Black "Fernandez Rivero, Karla July"]
[Result "1-0"]
[ECO "A28"]
[WhiteElo "2423"]
[BlackElo "2046"]
[Annotator "NA"]
[PlyCount "101"]
[EventDate "2019.12.13"]
[EventType "swiss"]
[EventCountry "MEX"]
[SourceTitle "playchess.com"]
[Source "ChessBase"]
[SourceQuality "1"]
[TimeControl "5400+30"]

1. c4 e5 2. Nc3 Nf6 3. Nf3 Nc6 4. e4 Bb4 5. d3 a5 6. Be2 O-O 7. O-O h6 8. Nd5 Re8 9. Nxb4 axb4 10. h3 Qe7 11. Bd2 Nd8 12. Qe1 c5 13. Nh4 d6 14. f4 Nc6 15. Qg3 Nd4 16. Bd1 Kh7 17. Be3 b5 18. fxe5 dxe5 19. cxb5 Bd7 20. Bxd4 cxd4 21. Nf5 Bxf5 22. Rxf5 g6 23. Rf2 Kg7 24. Kh2 Reb8 25. Bb3 Rxb5 26. Raf1 Rb6 27. Qf3 Rg8 28. g4 Rc6 29. Qg3 Rf8 30. Kg2 Rfc8 31. h4 Rf8 32. Rf3 h5 33. g5 Ng4 34. Rxf7+ Rxf7 35. Rxf7+ Qxf7 36. Bxf7 Kxf7 37. Qf3+ Ke7 38. Kg3 Rc2 39. Qf1 Ke8 40. Qb1 Ne3 41. a4 Rg2+ 42. Kh3 b3 43. a5 Rf2 44. a6 Rf3+ 45. Kh2 Rf2+ 46. Kg1 Rf7 47. Qa1 Ra7 48. Qa5 Rf7 49. Qxe5+ Kf8 50. Qh8+ Ke7 51. Qf6+ 1-0

[Event "XXXI Torre Memorial 2019"]
[Site "Merida"]
[Date "2019.12.14"]
[Round "2.19"]
[White "Miranda Llanes, Yerisbel"]
[Black "Fernandez Guillen, Ernesto J."]
[Result "0-1"]
[ECO "E11"]
[WhiteElo "2280"]
[BlackElo "2407"]
[Annotator "NA"]
[PlyCount "82"]
[EventDate "2019.12.13"]
[EventType "swiss"]
[EventCountry "MEX"]
[SourceTitle "playchess.com"]
[Source "ChessBase"]
[SourceQuality "1"]
[TimeControl "5400+30"]

1. d4 Nf6 2. c4 e6 3. Nf3 Bb4+ 4. Nbd2 O-O 5. a3 Bxd2+ 6. Qxd2 b6 7. e3 Bb7 8. Be2 c5 9. O-O Qe7 10. b3 cxd4 11. Nxd4 d5 12. Bb2 Rd8 13. Qb4 Qe8 14. Rac1 Na6 15. Qb5 Qf8 16. b4 Nc7 17. Qa4 dxc4 18. Bxc4 a6 19. Be2 Ncd5 20. Qb3 Rac8 21. Rfd1 Qe7 22. Bf3 b5 23. Rxc8 Rxc8 24. Qd3 Nb6 25. Bxb7 Qxb7 26. Nb3 Na4 27. Bxf6 gxf6 28. Qd4 Nc3 29. Qg4+ Kf8 30. Nc5 Nxd1 31. Qxd1 Qd5 32. Qc2 Rd8 33. h3 Qd1+ 34. Qxd1 Rxd1+ 35. Kh2 Rd6 36. Kg3 Rc6 37. Kf4 Ke7 38. Ke4 Kd6 39. Nb7+ Kc7 40. Nc5 Rxc5 41. bxc5 Kc6 0-1

[Event "XXXI Torre Memorial 2019"]
[Site "Merida"]
[Date "2019.12.15"]
[Round "3.1"]
[White "Hevia Alejano, Carlos Antonio"]
[Black "Cordova, Emilio"]
[Result "1/2-1/2"]
[ECO "E19"]
[WhiteElo "2465"]
[BlackElo "2585"]
[Annotator "ChessBase"]
[PlyCount "51"]
[EventDate "2019.12.13"]
[EventType "swiss"]
[EventCountry "MEX"]
[SourceTitle "playchess.com"]
[Source "ChessBase"]
[SourceQuality "1"]
[TimeControl "5400+30"]

1. d4 {[%emt 0:00:00]} Nf6 {[%emt 0:00:00]} 2. Nf3 {[%emt 0:00:00]} e6 {[%emt 0:00:00]} 3. c4 {[%emt 0:00:03]} b6 {[%emt 0:03:41]} 4. g3 {[%emt 0:02:19]} Bb7 {[%emt 0:00:36]} 5. Bg2 {[%emt 0:00:12]} Be7 {[%emt 0:00:06]} 6. O-O {[%emt 0:00:28]} O-O {[%emt 0:00:11]} 7. Nc3 {[%emt 0:00:26]} Ne4 {[%emt 0:02:48]} 8. Qc2 {[%emt 0:03:18]} Nxc3 {[%emt 0:03:04]} 9. Qxc3 {[%emt 0:00:14]} Be4 {[%emt 0:04:06]} 10. Bf4 {[%emt 0:06:17]} d6 {[%emt 0:02:27]} 11. Ne1 {[%emt 0:05:32]} Bxg2 {[%emt 0:00:08]} 12. Nxg2 {[%emt 0:00:03]} Nc6 {[%emt 0:02:48]} 13. d5 {[%emt 0:06:09]} Bf6 {[%emt 0:00:25]} 14. Qd2 {[%emt 0:00:39]} Ne5 {[%emt 0:01:29]} 15. Rac1 {[%emt 0:02:21]} Re8 {[%emt 0:00:42]} 16. Bxe5 {[%emt 0:10:15]} Bxe5 {[%emt 0:01:19]} 17. b3 {[%emt 0:00:13]} Bf6 {[%emt 0:01:09]} 18. h4 {[%emt 0:05:48]} Qd7 {[%emt 0:00:43]} 19. e3 {[%emt 0:02:56]} c6 {[%emt 0:02:41]} 20. dxc6 {[%emt 0:02:31]} Qxc6 {[%emt 0:00:29]} 21. Rfd1 {[%emt 0:00:17]} Red8 {[%emt 0:00:09]} 22. Qe2 {[%emt 0:00:14]} Rac8 {[%emt 0:00:09]} 23. a4 {[%emt 0:01:21]} g6 {[%emt 0:00:20]} 24. Nf4 {[%emt 0:00:13]} a6 {[%emt 0:00:21]} 25. Qf1 {[%emt 0:00:11]} h5 {[%emt 0:00:36]} 26. Qg2 {[%emt 0:00:04]} 1/2-1/2

[Event "XXXI Torre Memorial 2019"]
[Site "Merida"]
[Date "2019.12.15"]
[Round "3.2"]
[White "Kevlishvili, Robby"]
[Black "Albornoz Cabrera, Carlos Daniel"]
[Result "1-0"]
[ECO "C96"]
[WhiteElo "2457"]
[BlackElo "2555"]
[Annotator "ChessBase"]
[PlyCount "75"]
[EventDate "2019.12.13"]
[EventType "swiss"]
[EventCountry "MEX"]
[SourceTitle "playchess.com"]
[Source "ChessBase"]
[SourceQuality "1"]
[TimeControl "5400+30"]

1. e4 {[%emt 0:00:00]} e5 {[%emt 0:00:00]} 2. Nf3 {[%emt 0:00:00]} Nc6 {[%emt 0:00:00]} 3. Bb5 {[%emt 0:00:00]} a6 {[%emt 0:00:00]} 4. Ba4 {[%emt 0:00:00]} Nf6 {[%emt 0:00:00]} 5. O-O {[%emt 0:00:00]} Be7 {[%emt 0:00:00]} 6. Re1 {[%emt 0:00:00]} b5 {[%emt 0:00:04]} 7. Bb3 {[%emt 0:00:05]} d6 {[%emt 0:00:04]} 8. c3 {[%emt 0:00:04]} O-O {[%emt 0:00:07]} 9. h3 {[%emt 0:00:31]} Na5 {[%emt 0:00:05]} 10. Bc2 {[%emt 0:00:04]} c5 {[%emt 0:00:03]} 11. d4 {[%emt 0:00:05]} Nd7 {[%emt 0:00:04]} 12. Nbd2 {[%emt 0:01:28]} exd4 {[%emt 0:00:26]} 13. cxd4 {[%emt 0:00:11]} Nc6 {[%emt 0:00:03]} 14. d5 {[%emt 0:06:53]} Nce5 {[%emt 0:00:29]} 15. Rb1 {[%emt 0:02:51]} Nxf3+ {[%emt 0:06:40]} 16. Nxf3 {[%emt 0:01:51]} Bf6 {[%emt 0:00:35]} 17. b4 {[%emt 0:12:20]} cxb4 {[%emt 0:04:46]} 18. Nd4 {[%emt 0:01:40]} Bxd4 {[%emt 0:07:15]} 19. Qxd4 Qc7 {[%emt 0:00:39]} 20. Bb2 {[%emt 0:03:54]} f6 {[%emt 0:01:12]} 21. Rec1 {[%emt 0:05:45]} Qa5 {[%emt 0:13:15]} 22. Ba1 {[%emt 0:00:42]} Ne5 {[%emt 0:02:37]} 23. Rxb4 {[%emt 0:08:45]} Bd7 {[%emt 0:02:51]} 24. f4 {[%emt 0:06:15]} Ng6 {[%emt 0:01:52]} 25. Rf1 {[%emt 0:00:27]} Qxa2 {[%emt 0:07:28]} 26. Bb1 {[%emt 0:02:37]} Qa5 {[%emt 0:00:58]} 27. Rb3 {[%emt 0:03:02]} Rac8 {[%emt 0:04:41]} 28. Bc3 {[%emt 0:01:19]} Qa4 {[%emt 0:17:19]} 29. Rb4 {[%emt 0:01:09]} Qa3 {[%emt 0:00:48]} 30. Bd2 {[%emt 0:01:28]} Nh4 {[%emt 0:06:26]} 31. Bd3 {[%emt 0:05:15]} Qa2 {[%emt 0:04:04]} 32. Rb2 {[%emt 0:00:59]} Qa3 {[%emt 0:02:21]} 33. Bb4 {[%emt 0:00:46]} Qa4 {[%emt 0:00:03]} 34. Qf2 {[%emt 0:00:08]} Ng6 {[%emt 0:00:30]} 35. Bc2 {[%emt 0:06:52]} Rxc2 {[%emt 0:00:26]} 36. Qxc2 {[%emt 0:00:02]} Re8 {[%emt 0:00:17]} 37. Qc7 {[%emt 0:01:15]} Rxe4 {[%emt 0:00:11]} 38. Qxd7 {[%emt 0:00:07]} 1-0

[Event "XXXI Torre Memorial 2019"]
[Site "Merida"]
[Date "2019.12.15"]
[Round "3.3"]
[White "Diaz Perez, Michel Alejandro"]
[Black "Almeida Quintana, Omar"]
[Result "1/2-1/2"]
[ECO "A41"]
[WhiteElo "2455"]
[BlackElo "2554"]
[Annotator "ChessBase"]
[PlyCount "73"]
[EventDate "2019.12.13"]
[EventType "swiss"]
[EventCountry "MEX"]
[SourceTitle "playchess.com"]
[Source "ChessBase"]
[SourceQuality "1"]
[TimeControl "5400+30"]

1. d4 d6 2. c4 e5 3. dxe5 dxe5 4. Qxd8+ Kxd8 5. Nc3 Be6 6. Nf3 f6 7. e4 Nd7 8. Be2 c6 9. Be3 Ne7 10. O-O Nc8 11. Na4 Ncb6 12. Nxb6 axb6 13. a3 Bc5 14. Bd2 Kc7 15. Bc3 Bg4 16. Rfd1 Nf8 17. b4 Bd6 18. Kf1 Ne6 19. Nh4 Bxe2+ 20. Kxe2 g6 21. a4 Ra7 22. Ra2 Nd4+ 23. Bxd4 exd4 24. b5 Rha8 25. Rxd4 Be5 26. Rd3 Rxa4 27. Rad2 cxb5 28. Rd7+ Kc6 29. cxb5+ Kxb5 30. Nf3 Rxe4+ 31. Kd3 Rb4 32. Nxe5 fxe5 33. Rxb7 Rd8+ 34. Ke3 Rxd2 35. Kxd2 Rg4 36. h3 Rf4 37. Ke3 1/2-1/2

[Event "XXXI Torre Memorial 2019"]
[Site "Merida"]
[Date "2019.12.15"]
[Round "3.4"]
[White "Martinez Ramirez, Lennis"]
[Black "Ortiz Suarez, Isan Reynaldo"]
[Result "1-0"]
[ECO "A58"]
[WhiteElo "2454"]
[BlackElo "2549"]
[Annotator "RC"]
[PlyCount "180"]
[EventDate "2019.12.13"]
[EventType "swiss"]
[EventCountry "MEX"]
[SourceTitle "playchess.com"]
[Source "ChessBase"]
[SourceQuality "1"]
[TimeControl "5400+30"]

1. d4 {[%emt 0:00:00]} Nf6 {[%emt 0:00:47]} 2. c4 {[%emt 0:00:48]} c5 {[%emt 0:01:22]} 3. d5 {[%emt 0:00:09]} b5 {[%emt 0:00:06]} 4. cxb5 {[%emt 0:00:58]} a6 {[%emt 0:00:04]} 5. bxa6 {[%emt 0:02:00]} g6 {[%emt 0:00:07]} 6. Nc3 {[%emt 0:00:30]} Bg7 {[%emt 0:00:13]} 7. e4 {[%emt 0:02:25]} O-O {[%emt 0:00:09]} 8. Nf3 {[%emt 0:00:42]} Qa5 {[%emt 0:00:31]} 9. Nd2 {[%emt 0:04:14]} Bxa6 {[%emt 0:01:07]} 10. Bxa6 {[%emt 0:00:05]} Qxa6 {[%emt 0:00:09]} 11. a4 {[%emt 0:01:14]} e6 {[%emt 0:05:18]} 12. Nb5 {[%emt 0:04:12]} Qb7 {[%emt 0:07:19]} 13. dxe6 {[%emt 0:06:02]} fxe6 {[%emt 0:00:09]} 14. Qe2 {[%emt 0:08:29]} Na6 {[%emt 0:04:16]} 15. O-O {[%emt 0:00:33]} Qc6 {[%emt 0:05:33]} 16. e5 {[%emt 0:06:24]} Nd5 {[%emt 0:03:04]} 17. Nc4 {[%emt 0:00:04]} Nac7 {[%emt 0:09:43]} 18. Nxc7 {[%emt 0:01:08]} Nxc7 {[%emt 0:00:06]} 19. a5 {[%emt 0:00:43]} Nd5 {[%emt 0:00:30]} 20. Ra3 {[%emt 0:01:24]} Rfb8 {[%emt 0:07:50]} 21. h4 {[%emt 0:02:24]} Qa6 {[%emt 0:05:23]} 22. h5 {[%emt 0:02:12]} Rb4 {[%emt 0:00:10]} 23. b3 {[%emt 0:00:15]} Nc3 {[%emt 0:08:43]} 24. Qe3 {[%emt 0:08:20]} Nb5 {[%emt 0:08:39]} 25. hxg6 {[%emt 0:00:14]} hxg6 {[%emt 0:14:10]} 26. Qxc5 {[%emt 0:00:32]} Nxa3 {[%emt 0:00:33]} 27. Qxb4 {[%emt 0:01:01]} Nxc4 {[%emt 0:00:04]} 28. bxc4 {[%emt 0:00:27]} Qxa5 {[%emt 0:00:58]} 29. Qd6 {[%emt 0:03:40]} Qa4 {[%emt 0:00:42]} 30. Qd3 {[%emt 0:01:55]} Kh7 {[%emt 0:03:09]} 31. Bf4 {[%emt 0:00:01]} Rf8 {[%emt 0:00:45]} 32. Bg3 {[%emt 0:01:11]} Rc8 {[%emt 0:01:58]} 33. Rc1 {[%emt 0:02:03]} Bh6 {[%emt 0:01:52]} 34. Rc3 {[%emt 0:01:57]} Qc6 {[%emt 0:00:59]} 35. Ra3 {[%emt 0:01:08]} Rc7 {[%emt 0:00:30]} 36. Rc3 {[%emt 0:01:20]} Qc5 {[%emt 0:02:17]} 37. Kh2 {[%emt 0:00:24]} Bg7 {[%emt 0:00:34]} 38. Qe4 {[%emt 0:00:56]} Rc8 {[%emt 0:00:51]} 39. Qh4+ {[%emt 0:00:13]} Kg8 {[%emt 0:00:05]} 40. Qg5 {[%emt 0:00:36]} Qd4 {[%emt 0:01:37]} 41. Rf3 {[%emt 0:00:32]} Qe4 {[%emt 0:00:23]} 42. Rf4 {[%emt 0:06:12]} Qd3 {[%emt 0:00:02]} 43. f3 {[%emt 0:01:21]} Rf8 {[%emt 0:01:46]} 44. Re4 {[%emt 0:00:08]} Kf7 {[%emt 0:01:34]} 45. Rf4+ {[%emt 0:01:17]} Kg8 {[%emt 0:00:29]} 46. Rh4 {[%emt 0:00:11]} Rf7 {[%emt 0:02:22]} 47. Re4 {[%emt 0:00:57]} Kh7 {[%emt 0:00:39]} 48. Qh4+ {[%emt 0:00:00]} Kg8 {[%emt 0:00:04]} 49. Rd4 {[%emt 0:00:13]} Qe2 {[%emt 0:00:02]} 50. Qd8+ {[%emt 0:00:59]} Bf8 {[%emt 0:00:03]} 51. Rg4 {[%emt 0:03:39]} Rh7+ {[%emt 0:01:28]} 52. Rh4 {[%emt 0:00:32]} Rxh4+ {[%emt 0:00:06]} 53. Qxh4 {[%emt 0:00:05]} Qd3 {[%emt 0:00:14]} 54. Qf4 {[%emt 0:00:36]} Qf5 {[%emt 0:02:25]} 55. Qd4 {[%emt 0:00:11]} Qf7 {[%emt 0:00:18]} 56. Bh4 {[%emt 0:00:08]} Bg7 {[%emt 0:01:00]} 57. Bf6 {[%emt 0:00:27]} Bxf6 {[%emt 0:01:57]} 58. exf6 {[%emt 0:00:01]} g5 {[%emt 0:00:42]} 59. Kg3 {[%emt 0:02:18]} Kh7 {[%emt 0:00:03]} 60. f4 {[%emt 0:03:20]} gxf4+ {[%emt 0:00:19]} 61. Kxf4 {[%emt 0:00:31]} Kg6 {[%emt 0:00:45]} 62. c5 {[%emt 0:00:45]} Qf8 {[%emt 0:01:00]} 63. Kf3 {[%emt 0:01:32]} Kf7 {[%emt 0:00:48]} 64. g4 {[%emt 0:06:57]} Qa8+ {[%emt 0:00:08]} 65. Qe4 {[%emt 0:05:44]} Qa3+ {[%emt 0:00:10]} 66. Qe3 {[%emt 0:00:42]} Qa1 {[%emt 0:00:47]} 67. g5 {[%emt 0:00:20]} Qd1+ {[%emt 0:00:23]} 68. Kg3 {[%emt 0:00:12]} Qd5 {[%emt 0:00:40]} 69. Kh4 {[%emt 0:02:03]} Kg6 {[%emt 0:00:45]} 70. Kg3 {[%emt 0:00:07]} Kf7 {[%emt 0:00:25]} 71. Kf2 {[%emt 0:00:29]} Qa2+ {[%emt 0:00:12]} 72. Qe2 {[%emt 0:00:19]} Qd5 73. Qe3 Qf5+ 74. Ke1 Qb1+ 75. Kd2 Qb2+ 76. Ke1 Qb1+ 77. Ke2 Qc2+ 78. Qd2 Qe4+ 79. Kf2 Qh4+ 80. Kf3 Qh3+ 81. Ke2 Qg2+ 82. Kd1 Qf1+ 83. Kc2 Qc4+ 84. Qc3 Qa2+ 85. Kd3 Qd5+ 86. Qd4 Qf5+ 87. Kc4 Qd5+ 88. Kd3 Qb3+ 89. Ke4 Qc2+ 90. Ke5 Qh2+ {Kf4 Qc2} 1-0

[Event "XXXI Torre Memorial 2019"]
[Site "Merida"]
[Date "2019.12.15"]
[Round "3.9"]
[White "Morales Romero, Pedro"]
[Black "Ramirez, Alejandro"]
[Result "0-1"]
[ECO "B41"]
[WhiteElo "2328"]
[BlackElo "2589"]
[Annotator "ChessBase"]
[PlyCount "84"]
[EventDate "2019.12.13"]
[EventType "swiss"]
[EventCountry "MEX"]
[SourceTitle "playchess.com"]
[Source "ChessBase"]
[SourceQuality "1"]
[TimeControl "5400+30"]

1. e4 {[%emt 0:00:00]} c5 {[%emt 0:00:00]} 2. Nf3 {[%emt 0:00:00]} e6 {[%emt 0:00:00]} 3. d4 {[%emt 0:00:02]} cxd4 {[%emt 0:00:00]} 4. Nxd4 {[%emt 0:00:05]} a6 {[%emt 0:00:00]} 5. c4 {[%emt 0:00:31]} Nf6 {[%emt 0:01:08]} 6. Nc3 {[%emt 0:00:08]} d6 {[%emt 0:01:08]} 7. Be2 {[%emt 0:00:33]} b6 {[%emt 0:01:31]} 8. f4 {[%emt 0:02:01]} Bb7 {[%emt 0:00:18]} 9. Bf3 {[%emt 0:00:10]} Qc7 {[%emt 0:10:18]} 10. O-O {[%emt 0:00:52]} Be7 {[%emt 0:14:49]} 11. Be3 {[%emt 0:00:18]} Nbd7 {[%emt 0:02:23]} 12. Rc1 {[%emt 0:00:18]} Rc8 {[%emt 0:00:35]} 13. f5 {[%emt 0:10:00]} e5 {[%emt 0:01:15]} 14. Nd5 {[%emt 0:00:18]} Qd8 {[%emt 0:05:06]} 15. Ne6 {[%emt 0:00:42]} fxe6 {[%emt 0:01:27]} 16. fxe6 {[%emt 0:00:06]} Nc5 {[%emt 0:00:16]} 17. b4 {[%emt 0:04:25]} Nxe6 {[%emt 0:13:18]} 18. Bh5+ {[%emt 0:01:21]} Nxh5 {[%emt 0:11:48]} 19. Qxh5+ {[%emt 0:01:49]} g6 {[%emt 0:00:15]} 20. Qf3 {[%emt 0:07:35]} Rf8 {[%emt 0:10:45]} 21. Qh3 {[%emt 0:00:12]} Bxd5 {[%emt 0:05:07]} 22. cxd5 {[%emt 0:02:32]} Rxf1+ {[%emt 0:06:07]} 23. Rxf1 {[%emt 0:00:07]} Nf4 {[%emt 0:00:45]} 24. Qxh7 {[%emt 0:01:56]} Kd7 {[%emt 0:01:22]} 25. Bxf4 {[%emt 0:01:32]} exf4 {[%emt 0:00:01]} 26. Qxg6 {[%emt 0:00:25]} Qh8 {[%emt 0:00:49]} 27. Qe6+ {[%emt 0:02:29]} Kd8 {[%emt 0:00:08]} 28. e5 Qf8 {[%emt 0:02:11]} 29. g3 {[%emt 0:01:47]} f3 {[%emt 0:02:39]} 30. exd6 {[%emt 0:01:24]} Bxd6 {[%emt 0:00:02]} 31. Qe3 {[%emt 0:00:24]} Kc7 {[%emt 0:01:48]} 32. Rxf3 {[%emt 0:01:45]} Qe7 {[%emt 0:00:03]} 33. Qxe7+ {[%emt 0:04:22]} Bxe7 {[%emt 0:00:04]} 34. Rc3+ {[%emt 0:01:12]} Kd7 {[%emt 0:00:01]} 35. Rxc8 {[%emt 0:00:08]} Kxc8 {[%emt 0:00:01]} 36. Kg2 {[%emt 0:00:26]} Bxb4 {[%emt 0:00:34]} 37. Kf3 {[%emt 0:00:14]} Kd7 {[%emt 0:00:21]} 38. g4 {[%emt 0:00:26]} Be7 {[%emt 0:02:37]} 39. Ke4 {[%emt 0:00:36]} b5 {[%emt 0:00:34]} 40. Kd4 {[%emt 0:05:44]} Kd6 {[%emt 0:00:33]} 41. Ke4 {[%emt 0:01:14]} a5 {[%emt 0:00:13]} 42. Kf5 {[%emt 0:00:46]} b4 {[%emt 0:00:16]} 0-1

[Event "XXXI Torre Memorial 2019"]
[Site "Merida"]
[Date "2019.12.15"]
[Round "3.11"]
[White "Figueredo Losada, Leonel"]
[Black "Rodriguez Vila, Andres"]
[Result "0-1"]
[ECO "A85"]
[WhiteElo "2381"]
[BlackElo "2463"]
[Annotator "ChessBase"]
[PlyCount "72"]
[EventDate "2019.12.13"]
[EventType "swiss"]
[EventCountry "MEX"]
[SourceTitle "playchess.com"]
[Source "ChessBase"]
[SourceQuality "1"]
[TimeControl "5400+30"]

1. d4 {[%emt 0:00:00]} f5 {[%emt 0:00:00]} 2. c4 {[%emt 0:00:09]} Nf6 {[%emt 0:00:00]} 3. Nc3 {[%emt 0:00:04]} g6 {[%emt 0:00:28]} 4. Nf3 {[%emt 0:00:41]} Bg7 {[%emt 0:00:06]} 5. Bf4 {[%emt 0:00:06]} h6 {[%emt 0:00:30]} 6. e3 {[%emt 0:01:13]} d6 {[%emt 0:00:34]} 7. Qb3 {[%emt 0:10:09]} g5 {[%emt 0:00:58]} 8. Bg3 {[%emt 0:00:04]} O-O {[%emt 0:00:52]} 9. c5+ {[%emt 0:00:43]} d5 {[%emt 0:04:21]} 10. h4 {[%emt 0:01:48]} g4 {[%emt 0:00:19]} 11. Ne5 {[%emt 0:00:12]} e6 {[%emt 0:02:19]} 12. h5 {[%emt 0:11:49]} Nc6 {[%emt 0:03:14]} 13. Nxc6 {[%emt 0:08:37]} bxc6 {[%emt 0:00:23]} 14. Qa4 {[%emt 0:00:06]} Bd7 {[%emt 0:07:27]} 15. f3 {[%emt 0:07:32]} Be8 {[%emt 0:06:02]} 16. Qa5 {[%emt 0:00:08]} gxf3 {[%emt 0:03:23]} 17. gxf3 {[%emt 0:01:36]} Nxh5 {[%emt 0:01:53]} 18. Bxc7 {[%emt 0:00:08]} Qg5 {[%emt 0:00:12]} 19. f4 {[%emt 0:00:46]} Qg3+ {[%emt 0:00:59]} 20. Kd2 {[%emt 0:00:06]} Qf2+ {[%emt 0:01:49]} 21. Be2 {[%emt 0:02:12]} Ng3 {[%emt 0:00:15]} 22. Bd6 {[%emt 0:21:32]} Rf7 {[%emt 0:00:53]} 23. Rhg1 {[%emt 0:00:57]} Rb7 {[%emt 0:02:02]} 24. b3 {[%emt 0:00:38]} Kh7 {[%emt 0:18:12]} 25. Qa6 {[%emt 0:01:16]} Rb4 {[%emt 0:00:12]} 26. Qd3 {[%emt 0:06:21]} a5 {[%emt 0:00:11]} 27. Rxg3 {[%emt 0:06:56]} Qxg3 {[%emt 0:00:18]} 28. Na4 {[%emt 0:00:03]} Qh2 {[%emt 0:09:20]} 29. Nb6 {[%emt 0:00:50]} Ra7 {[%emt 0:00:05]} 30. Kc3 {[%emt 0:04:33]} Bf6 {[%emt 0:00:57]} 31. a3 {[%emt 0:00:34]} Rb5 {[%emt 0:00:31]} 32. Qd2 {[%emt 0:00:12]} Rg7 {[%emt 0:01:35]} 33. Bxb5 {[%emt 0:00:25]} Rg2 {[%emt 0:00:11]} 34. Qd3 {[%emt 0:00:23]} cxb5 {[%emt 0:00:10]} 35. Rd1 {[%emt 0:03:11]} Bh4 {[%emt 0:02:59]} 36. Rc1 {[%emt 0:04:06]} Ra2 {[%emt 0:00:21]} 0-1

[Event "XXXI Torre Memorial 2019"]
[Site "Merida"]
[Date "2019.12.15"]
[Round "3.12"]
[White "Fernandez De La Vara, Arnaldo"]
[Black "Drazic, Sinisa"]
[Result "1-0"]
[ECO "E19"]
[WhiteElo "2463"]
[BlackElo "2371"]
[Annotator "ChessBase"]
[PlyCount "50"]
[EventDate "2019.12.13"]
[EventType "swiss"]
[EventCountry "MEX"]
[SourceTitle "playchess.com"]
[Source "ChessBase"]
[SourceQuality "1"]
[TimeControl "5400+30"]

1. Nf3 {[%emt 0:00:00]} Nf6 {[%emt 0:00:00]} 2. c4 {[%emt 0:00:02]} e6 {[%emt 0:00:00]} 3. g3 {[%emt 0:00:30]} a6 {[%emt 0:00:00]} 4. Bg2 {[%emt 0:00:14]} b5 {[%emt 0:00:00]} 5. b3 {[%emt 0:00:09]} c5 {[%emt 0:00:00]} 6. O-O {[%emt 0:00:52]} Bb7 {[%emt 0:00:27]} 7. Nc3 {[%emt 0:01:19]} b4 {[%emt 0:07:23]} 8. Na4 {[%emt 0:00:55]} Be7 {[%emt 0:00:05]} 9. a3 {[%emt 0:06:20]} bxa3 {[%emt 0:01:12]} 10. d4 {[%emt 0:02:46]} cxd4 {[%emt 0:00:14]} 11. Bxa3 {[%emt 0:01:24]} Bxa3 {[%emt 0:00:25]} 12. Rxa3 {[%emt 0:00:05]} e5 {[%emt 0:14:00]} 13. Nxe5 {[%emt 0:26:23]} Bxg2 {[%emt 0:00:40]} 14. Kxg2 {[%emt 0:00:05]} Qe7 {[%emt 0:00:15]} 15. Qxd4 {[%emt 0:03:23]} Qxa3 {[%emt 0:00:08]} 16. Nb6 {[%emt 0:00:06]} Qxb3 {[%emt 0:27:28]} 17. Qc5 {[%emt 0:09:13]} d6 {[%emt 0:13:35]} 18. Qc8+ {[%emt 0:07:19]} Ke7 {[%emt 0:00:13]} 19. Qb7+ {[%emt 0:00:15]} Ke6 {[%emt 0:03:44]} 20. Nf3 {[%emt 0:00:14]} Qb2 {[%emt 0:04:08]} 21. Rb1 {[%emt 0:00:31]} Qxb6 {[%emt 0:08:51]} 22. Qxb6 {[%emt 0:01:42]} Rc8 {[%emt 0:01:03]} 23. Qe3+ {[%emt 0:01:15]} Kd7 {[%emt 0:00:03]} 24. Rb7+ {[%emt 0:00:12]} Rc7 {[%emt 0:00:03]} 25. Qb6 {[%emt 0:00:23]} Ng8 1-0